Workbook

Sheet 1_IF
C1: Exercício 1 | J1: Exercício 2
D2: x ; x < 5 | K2: x ; x < 5
C3: f(x) = | J3: g(x) = | K3: x2 ; 5 <= x <= 7
D4: x + 2 ; x >= 5 | K4: x2 + 3 ; x > 7
C7: x | D7: f(x) | J7: x | K7: g(x)
C8: 0 | D8: =IF(C8 < 5, C8, C8+2) -> 0 | J8: 0 | K8: =IF(J8 < 5, J8, IF(J8 <= 7, J8^2, J8^2+3)) -> 0
C9: 1 | D9: =IF(C9 < 5, C9, C9+2) -> 1 | J9: 1 | K9: =IF(J9 < 5, J9, IF(J9 <= 7, J9^2, J9^2+3)) -> 1
C10: 2 | D10: 2 | J10: 2 | K10: 2
C11: 3 | D11: 3 | J11: 3 | K11: 3
C12: 4 | D12: 4 | J12: 4 | K12: 4
C13: 5 | D13: 7 | J13: 5 | K13: 25
C14: 6 | D14: 8 | J14: 6 | K14: 36
C15: 7 | D15: 9 | J15: 7 | K15: 49
C16: 8 | D16: 10 | J16: 8 | K16: 67
C17: 9 | D17: 11 | J17: 9 | K17: 84
C18: 10 | D18: 12 | J18: 10 | K18: 103

Sheet 2_IF_AND_OR
C1: Exercício 3
F3: x ; x < 5
E4: h(x) = | F4: x2 ; 5 <= x < 7
F5: x ; x >= 7
C7: x | D7: h(x) | J7: x | K7: h(x)
C8: 0 | D8: =IF(AND(C8 >= 5, C8 < 7), C8^2, C8) -> 0 | J8: 0 | K8: =IF(OR(J8 < 5, J8 >= 7), J8, J8^2) -> 0
C9: 1 | D9: =IF(AND(C9 >= 5, C9 < 7), C9^2, C9) -> 1 | J9: 1 | K9: =IF(OR(J9 < 5, J9 >= 7), J9, J9^2) -> 1
C10: 2 | D10: 2 | J10: 2 | K10: 2
C11: 3 | D11: 3 | J11: 3 | K11: 3
C12: 4 | D12: 4 | J12: 4 | K12: 4
C13: 5 | D13: 25 | J13: 5 | K13: 25
C14: 6 | D14: 36 | J14: 6 | K14: 36
C15: 7 | D15: 7 | J15: 7 | K15: 7
C16: 8 | D16: 8 | J16: 8 | K16: 8
C17: 9 | D17: 9 | J17: 9 | K17: 9
C18: 10 | D18: 10 | J18: 10 | K18: 10

Sheet 3_Representação Gráfica
B1: Exercício 4
E2: 2x2 ; x >= 0
D3: Considere a função f(x) =
E4: - 2x2 ; x < 0
B6: Represente graficamente f(x) no domínio [-10; 10].
C9: x | D9: f(x)
C11: =-10 -> -10 | D11: =IF(C11 < 0, -2*C11^2, 2*C11^2) -> -200
C12: -9.8 | D12: =IF(C12 < 0, -2*C12^2, 2*C12^2) -> -192.08
C13: -9.6 | D13: -184.32
C14: -9.4 | D14: -176.72
C15: -9.2 | D15: -169.28
C16: -9 | D16: -162
C17: -8.8 | D17: -154.88
C18: -8.6 | D18: -147.92
C19: -8.4 | D19: -141.12
C20: -8.2 | D20: -134.48
C21: -8 | D21: -128
C22: -7.8 | D22: -121.68
C23: -7.6 | D23: -115.52
C24: -7.4 | D24: -109.52
C25: -7.2 | D25: -103.68
C26: -7 | D26: -98
C27: -6.8 | D27: -92.48
C28: -6.6 | D28: -87.12
C29: -6.4 | D29: -81.92
C30: -6.2 | D30: -76.88
C31: -6 | D31: -72
C32: -5.8 | D32: -67.28
C33: -5.6 | D33: -62.72
C34: -5.4 | D34: -58.32
C35: -5.2 | D35: -54.08
C36: -5 | D36: -50
C37: -4.8 | D37: -46.08
C38: -4.6 | D38: -42.32
C39: -4.4 | D39: -38.72
C40: -4.2 | D40: -35.28
C41: -4 | D41: -32
C42: -3.8 | D42: -28.88
C43: -3.6 | D43: -25.92
C44: -3.4 | D44: -23.12
C45: -3.2 | D45: -20.48
C46: -3 | D46: -18
C47: -2.8 | D47: -15.68
C48: -2.6 | D48: -13.52
C49: -2.4 | D49: -11.52
C50: -2.2 | D50: -9.68
C51: -2 | D51: -8
C52: -1.8 | D52: -6.48
C53: -1.6 | D53: -5.12
C54: -1.4 | D54: -3.92
C55: -1.2 | D55: -2.88
C56: -1 | D56: -2
C57: -0.8 | D57: -1.28
C58: -0.6 | D58: -0.72
C59: -0.4 | D59: -0.32
C60: -0.2 | D60: -0.08
C61: 0 | D61: 0
C62: 0.2 | D62: 0.08
C63: 0.4 | D63: 0.32
C64: 0.6 | D64: 0.72
C65: 0.8 | D65: 1.28
C66: 1 | D66: 2
C67: 1.2 | D67: 2.88
C68: 1.4 | D68: 3.92
C69: 1.6 | D69: 5.12
C70: 1.8 | D70: 6.48
C71: 2 | D71: 8
C72: 2.2 | D72: 9.68
C73: 2.4 | D73: 11.52
C74: 2.6 | D74: 13.52
C75: 2.8 | D75: 15.68
C76: 3 | D76: =IF(C76 < 0, -2*C76^2, 2*C76^2) -> 18
C77: 3.2 | D77: 20.48
C78: 3.4 | D78: 23.12
C79: 3.6 | D79: 25.92
C80: 3.8 | D80: 28.88
C81: 4 | D81: 32
C82: 4.2 | D82: 35.28
C83: 4.4 | D83: 38.72
C84: 4.6 | D84: 42.32
C85: 4.8 | D85: 46.08
C86: 5 | D86: 50
C87: 5.2 | D87: 54.08
C88: 5.4 | D88: 58.32
C89: 5.6 | D89: 62.72
C90: 5.8 | D90: 67.28
C91: 6 | D91: 72
C92: 6.2 | D92: 76.88
C93: 6.4 | D93: 81.92
C94: 6.6 | D94: 87.12
C95: 6.8 | D95: 92.48
C96: 7 | D96: 98
C97: 7.2 | D97: 103.68
C98: 7.4 | D98: 109.52
C99: 7.6 | D99: 115.52
C100: 7.8 | D100: 121.68
C101: 8 | D101: 128
C102: 8.2 | D102: 134.48
C103: 8.4 | D103: 141.12
C104: 8.6 | D104: 147.92
C105: 8.8 | D105: 154.88
C106: 9 | D106: 162
C107: 9.2 | D107: 169.28
C108: 9.4 | D108: 176.72
C109: 9.6 | D109: 184.32
C110: 9.8 | D110: 192.08
C111: 10 | D111: 200

Sheet 4_Roupa_Cores
B1: Exercício 5 | C1: % | D1: =D2/SUM($D$4:$F$551) -> 77.56% | E1: =E2/SUM($D$4:$F$551) -> 0.00% | F1: =F2/SUM($D$4:$F$551) -> 22.44% | G1: =G2/SUM($G$4:$I$551) -> 27.42% | H1: =H2/SUM($G$4:$I$551) -> 51.61% | I1: =I2/SUM($G$4:$I$551) -> 20.97% | J1: =J2/SUM($J4:$L$551) -> 32.14% | K1: =K2/SUM($J4:$L$551) -> 0.00% | L1: =L2/SUM($J4:$L$551) -> 67.86%
C2: somas | D2: =SUM(D4:D551) -> 242 | E2: =SUM(E4:E551) -> 0 | F2: =SUM(F4:F551) -> 70 | G2: =SUM(G4:G551) -> 34 | H2: =SUM(H4:H551) -> 64 | I2: 26 | J2: 36 | K2: 0 | L2: 76 | M2: =SUM(D2:L2) -> 548
B3: Roupa | C3: Cor | D3: calças claras | E3: calças vivas | F3: calças escuras | G3: camisolas claras | H3: camisolas vivas | I3: camisolas escuras | J3: t-shirts claras | K3: t-shirts vivas | L3: t-shirts escuras
B4: calças | C4: clara | D4: =IF(AND(B4="calças", C4="clara"), 1, 0) -> 1 | E4: =IF(AND(B4="calças", C4="viva"), 1, 0) -> 0 | F4: =IF(AND(B4="calças", C4="escura"), 1, 0) -> 0 | G4: =IF(AND(B4="camisola", C4="clara"), 1, 0) -> 0 | H4: =IF(AND(B4="camisola", C4="viva"), 1, 0) -> 0 | I4: =IF(AND(B4="camisola", C4="escura"), 1, 0) -> 0 | J4: =IF(AND(B4="t-shirt", C4="clara"), 1, 0) -> 0 | K4: =IF(AND(B4="t-shirt", C4="viva"), 1, 0) -> 0 | L4: =IF(AND(B4="t-shirt", C4="escura"), 1, 0) -> 0
B5: camisola | C5: viva | D5: =IF(AND(B5="calças", C5="clara"), 1, 0) -> 0 | E5: =IF(AND(B5="calças", C5="viva"), 1, 0) -> 0 | F5: =IF(AND(B5="calças", C5="escura"), 1, 0) -> 0 | G5: =IF(AND(B5="camisola", C5="clara"), 1, 0) -> 0 | H5: =IF(AND(B5="camisola", C5="viva"), 1, 0) -> 1 | I5: =IF(AND(B5="camisola", C5="escura"), 1, 0) -> 0 | J5: =IF(AND(B5="t-shirt", C5="clara"), 1, 0) -> 0 | K5: =IF(AND(B5="t-shirt", C5="viva"), 1, 0) -> 0 | L5: =IF(AND(B5="t-shirt", C5="escura"), 1, 0) -> 0
B6: calças | C6: clara | D6: 1 | E6: 0 | F6: 0 | G6: 0 | H6: 0 | I6: 0 | J6: 0 | K6: 0 | L6: 0
B7: calças | C7: clara | D7: 1 | E7: 0 | F7: 0 | G7: 0 | H7: 0 | I7: 0 | J7: 0 | K7: 0 | L7: 0
B8: calças | C8: clara | D8: 1 | E8: 0 | F8: 0 | G8: 0 | H8: 0 | I8: 0 | J8: 0 | K8: 0 | L8: 0
B9: camisola | C9: viva | D9: 0 | E9: 0 | F9: 0 | G9: 0 | H9: 1 | I9: 0 | J9: 0 | K9: 0 | L9: 0
B10: calças | C10: clara | D10: 1 | E10: 0 | F10: 0 | G10: 0 | H10: 0 | I10: 0 | J10: 0 | K10: 0 | L10: 0
B11: t-shirt | C11: clara | D11: 0 | E11: 0 | F11: 0 | G11: 0 | H11: 0 | I11: 0 | J11: 1 | K11: 0 | L11: 0
B12: calças | C12: clara | D12: 1 | E12: 0 | F12: 0 | G12: 0 | H12: 0 | I12: 0 | J12: 0 | K12: 0 | L12: 0
B13: calças | C13: clara | D13: 1 | E13: 0 | F13: 0 | G13: 0 | H13: 0 | I13: 0 | J13: 0 | K13: 0 | L13: 0
B14: calças | C14: clara | D14: 1 | E14: 0 | F14: 0 | G14: 0 | H14: 0 | I14: 0 | J14: 0 | K14: 0 | L14: 0
B15: calças | C15: escura | D15: 0 | E15: 0 | F15: 1 | G15: 0 | H15: 0 | I15: 0 | J15: 0 | K15: 0 | L15: 0
B16: t-shirt | C16: clara | D16: 0 | E16: 0 | F16: 0 | G16: 0 | H16: 0 | I16: 0 | J16: 1 | K16: 0 | L16: 0
B17: t-shirt | C17: clara | D17: 0 | E17: 0 | F17: 0 | G17: 0 | H17: 0 | I17: 0 | J17: 1 | K17: 0 | L17: 0
B18: camisola | C18: viva | D18: 0 | E18: 0 | F18: 0 | G18: 0 | H18: 1 | I18: 0 | J18: 0 | K18: 0 | L18: 0
B19: t-shirt | C19: clara | D19: 0 | E19: 0 | F19: 0 | G19: 0 | H19: 0 | I19: 0 | J19: 1 | K19: 0 | L19: 0
B20: calças | C20: clara | D20: 1 | E20: 0 | F20: 0 | G20: 0 | H20: 0 | I20: 0 | J20: 0 | K20: 0 | L20: 0
B21: calças | C21: escura | D21: 0 | E21: 0 | F21: 1 | G21: 0 | H21: 0 | I21: 0 | J21: 0 | K21: 0 | L21: 0
B22: calças | C22: clara | D22: 1 | E22: 0 | F22: 0 | G22: 0 | H22: 0 | I22: 0 | J22: 0 | K22: 0 | L22: 0
B23: calças | C23: escura | D23: 0 | E23: 0 | F23: 1 | G23: 0 | H23: 0 | I23: 0 | J23: 0 | K23: 0 | L23: 0
B24: calças | C24: clara | D24: 1 | E24: 0 | F24: 0 | G24: 0 | H24: 0 | I24: 0 | J24: 0 | K24: 0 | L24: 0
B25: calças | C25: clara | D25: 1 | E25: 0 | F25: 0 | G25: 0 | H25: 0 | I25: 0 | J25: 0 | K25: 0 | L25: 0
B26: camisola | C26: viva | D26: 0 | E26: 0 | F26: 0 | G26: 0 | H26: 1 | I26: 0 | J26: 0 | K26: 0 | L26: 0
B27: t-shirt | C27: clara | D27: 0 | E27: 0 | F27: 0 | G27: 0 | H27: 0 | I27: 0 | J27: 1 | K27: 0 | L27: 0
B28: calças | C28: clara | D28: 1 | E28: 0 | F28: 0 | G28: 0 | H28: 0 | I28: 0 | J28: 0 | K28: 0 | L28: 0
B29: t-shirt | C29: clara | D29: 0 | E29: 0 | F29: 0 | G29: 0 | H29: 0 | I29: 0 | J29: 1 | K29: 0 | L29: 0
B30: calças | C30: escura | D30: 0 | E30: 0 | F30: 1 | G30: 0 | H30: 0 | I30: 0 | J30: 0 | K30: 0 | L30: 0
B31: camisola | C31: viva | D31: 0 | E31: 0 | F31: 0 | G31: 0 | H31: 1 | I31: 0 | J31: 0 | K31: 0 | L31: 0
B32: calças | C32: clara | D32: 1 | E32: 0 | F32: 0 | G32: 0 | H32: 0 | I32: 0 | J32: 0 | K32: 0 | L32: 0
B33: t-shirt | C33: escura | D33: 0 | E33: 0 | F33: 0 | G33: 0 | H33: 0 | I33: 0 | J33: 0 | K33: 0 | L33: 1
B34: camisola | C34: viva | D34: 0 | E34: 0 | F34: 0 | G34: 0 | H34: 1 | I34: 0 | J34: 0 | K34: 0 | L34: 0
B35: calças | C35: escura | D35: 0 | E35: 0 | F35: 1 | G35: 0 | H35: 0 | I35: 0 | J35: 0 | K35: 0 | L35: 0
B36: calças | C36: clara | D36: 1 | E36: 0 | F36: 0 | G36: 0 | H36: 0 | I36: 0 | J36: 0 | K36: 0 | L36: 0
B37: calças | C37: clara | D37: 1 | E37: 0 | F37: 0 | G37: 0 | H37: 0 | I37: 0 | J37: 0 | K37: 0 | L37: 0
B38: t-shirt | C38: escura | D38: 0 | E38: 0 | F38: 0 | G38: 0 | H38: 0 | I38: 0 | J38: 0 | K38: 0 | L38: 1
B39: calças | C39: clara | D39: 1 | E39: 0 | F39: 0 | G39: 0 | H39: 0 | I39: 0 | J39: 0 | K39: 0 | L39: 0
B40: calças | C40: clara | D40: 1 | E40: 0 | F40: 0 | G40: 0 | H40: 0 | I40: 0 | J40: 0 | K40: 0 | L40: 0
B41: camisola | C41: escura | D41: 0 | E41: 0 | F41: 0 | G41: 0 | H41: 0 | I41: 1 | J41: 0 | K41: 0 | L41: 0
B42: camisola | C42: escura | D42: 0 | E42: 0 | F42: 0 | G42: 0 | H42: 0 | I42: 1 | J42: 0 | K42: 0 | L42: 0
B43: calças | C43: clara | D43: 1 | E43: 0 | F43: 0 | G43: 0 | H43: 0 | I43: 0 | J43: 0 | K43: 0 | L43: 0
B44: calças | C44: clara | D44: 1 | E44: 0 | F44: 0 | G44: 0 | H44: 0 | I44: 0 | J44: 0 | K44: 0 | L44: 0
B45: t-shirt | C45: escura | D45: 0 | E45: 0 | F45: 0 | G45: 0 | H45: 0 | I45: 0 | J45: 0 | K45: 0 | L45: 1
B46: calças | C46: clara | D46: 1 | E46: 0 | F46: 0 | G46: 0 | H46: 0 | I46: 0 | J46: 0 | K46: 0 | L46: 0
B47: calças | C47: escura | D47: 0 | E47: 0 | F47: 1 | G47: 0 | H47: 0 | I47: 0 | J47: 0 | K47: 0 | L47: 0
B48: calças | C48: clara | D48: 1 | E48: 0 | F48: 0 | G48: 0 | H48: 0 | I48: 0 | J48: 0 | K48: 0 | L48: 0
B49: calças | C49: clara | D49: 1 | E49: 0 | F49: 0 | G49: 0 | H49: 0 | I49: 0 | J49: 0 | K49: 0 | L49: 0
B50: t-shirt | C50: clara | D50: 0 | E50: 0 | F50: 0 | G50: 0 | H50: 0 | I50: 0 | J50: 1 | K50: 0 | L50: 0
B51: calças | C51: clara | D51: 1 | E51: 0 | F51: 0 | G51: 0 | H51: 0 | I51: 0 | J51: 0 | K51: 0 | L51: 0
B52: calças | C52: escura | D52: 0 | E52: 0 | F52: 1 | G52: 0 | H52: 0 | I52: 0 | J52: 0 | K52: 0 | L52: 0
B53: t-shirt | C53: escura | D53: 0 | E53: 0 | F53: 0 | G53: 0 | H53: 0 | I53: 0 | J53: 0 | K53: 0 | L53: 1
B54: camisola | C54: escura | D54: 0 | E54: 0 | F54: 0 | G54: 0 | H54: 0 | I54: 1 | J54: 0 | K54: 0 | L54: 0
B55: calças | C55: clara | D55: 1 | E55: 0 | F55: 0 | G55: 0 | H55: 0 | I55: 0 | J55: 0 | K55: 0 | L55: 0
B56: calças | C56: clara | D56: 1 | E56: 0 | F56: 0 | G56: 0 | H56: 0 | I56: 0 | J56: 0 | K56: 0 | L56: 0
B57: calças | C57: clara | D57: 1 | E57: 0 | F57: 0 | G57: 0 | H57: 0 | I57: 0 | J57: 0 | K57: 0 | L57: 0
B58: calças | C58: escura | D58: 0 | E58: 0 | F58: 1 | G58: 0 | H58: 0 | I58: 0 | J58: 0 | K58: 0 | L58: 0
B59: calças | C59: clara | D59: 1 | E59: 0 | F59: 0 | G59: 0 | H59: 0 | I59: 0 | J59: 0 | K59: 0 | L59: 0
B60: calças | C60: clara | D60: 1 | E60: 0 | F60: 0 | G60: 0 | H60: 0 | I60: 0 | J60: 0 | K60: 0 | L60: 0
B61: camisola | C61: clara | D61: 0 | E61: 0 | F61: 0 | G61: 1 | H61: 0 | I61: 0 | J61: 0 | K61: 0 | L61: 0
B62: calças | C62: clara | D62: 1 | E62: 0 | F62: 0 | G62: 0 | H62: 0 | I62: 0 | J62: 0 | K62: 0 | L62: 0
B63: calças | C63: clara | D63: 1 | E63: 0 | F63: 0 | G63: 0 | H63: 0 | I63: 0 | J63: 0 | K63: 0 | L63: 0
B64: calças | C64: escura | D64: 0 | E64: 0 | F64: 1 | G64: 0 | H64: 0 | I64: 0 | J64: 0 | K64: 0 | L64: 0
B65: calças | C65: clara | D65: 1 | E65: 0 | F65: 0 | G65: 0 | H65: 0 | I65: 0 | J65: 0 | K65: 0 | L65: 0
B66: t-shirt | C66: escura | D66: 0 | E66: 0 | F66: 0 | G66: 0 | H66: 0 | I66: 0 | J66: 0 | K66: 0 | L66: 1
B67: calças | C67: clara | D67: 1 | E67: 0 | F67: 0 | G67: 0 | H67: 0 | I67: 0 | J67: 0 | K67: 0 | L67: 0
B68: t-shirt | C68: escura | D68: 0 | E68: 0 | F68: 0 | G68: 0 | H68: 0 | I68: 0 | J68: 0 | K68: 0 | L68: 1
B69: camisola | C69: escura | D69: =IF(AND(B69="calças", C69="clara"), 1, 0) -> 0 | E69: =IF(AND(B69="calças", C69="viva"), 1, 0) -> 0 | F69: =IF(AND(B69="calças", C69="escura"), 1, 0) -> 0 | G69: =IF(AND(B69="camisola", C69="clara"), 1, 0) -> 0 | H69: =IF(AND(B69="camisola", C69="viva"), 1, 0) -> 0 | I69: =IF(AND(B69="camisola", C69="escura"), 1, 0) -> 1 | J69: =IF(AND(B69="t-shirt", C69="clara"), 1, 0) -> 0 | K69: =IF(AND(B69="t-shirt", C69="viva"), 1, 0) -> 0 | L69: =IF(AND(B69="t-shirt", C69="escura"), 1, 0) -> 0
B70: t-shirt | C70: clara | D70: 0 | E70: 0 | F70: 0 | G70: 0 | H70: 0 | I70: 0 | J70: 1 | K70: 0 | L70: 0
B71: calças | C71: clara | D71: 1 | E71: 0 | F71: 0 | G71: 0 | H71: 0 | I71: 0 | J71: 0 | K71: 0 | L71: 0
B72: t-shirt | C72: escura | D72: 0 | E72: 0 | F72: 0 | G72: 0 | H72: 0 | I72: 0 | J72: 0 | K72: 0 | L72: 1
B73: calças | C73: clara | D73: 1 | E73: 0 | F73: 0 | G73: 0 | H73: 0 | I73: 0 | J73: 0 | K73: 0 | L73: 0
B74: t-shirt | C74: escura | D74: 0 | E74: 0 | F74: 0 | G74: 0 | H74: 0 | I74: 0 | J74: 0 | K74: 0 | L74: 1
B75: calças | C75: escura | D75: 0 | E75: 0 | F75: 1 | G75: 0 | H75: 0 | I75: 0 | J75: 0 | K75: 0 | L75: 0
B76: calças | C76: escura | D76: 0 | E76: 0 | F76: 1 | G76: 0 | H76: 0 | I76: 0 | J76: 0 | K76: 0 | L76: 0
B77: calças | C77: escura | D77: 0 | E77: 0 | F77: 1 | G77: 0 | H77: 0 | I77: 0 | J77: 0 | K77: 0 | L77: 0
B78: calças | C78: clara | D78: 1 | E78: 0 | F78: 0 | G78: 0 | H78: 0 | I78: 0 | J78: 0 | K78: 0 | L78: 0
B79: calças | C79: escura | D79: 0 | E79: 0 | F79: 1 | G79: 0 | H79: 0 | I79: 0 | J79: 0 | K79: 0 | L79: 0
B80: camisola | C80: viva | D80: 0 | E80: 0 | F80: 0 | G80: 0 | H80: 1 | I80: 0 | J80: 0 | K80: 0 | L80: 0
B81: calças | C81: escura | D81: 0 | E81: 0 | F81: 1 | G81: 0 | H81: 0 | I81: 0 | J81: 0 | K81: 0 | L81: 0
B82: calças | C82: clara | D82: 1 | E82: 0 | F82: 0 | G82: 0 | H82: 0 | I82: 0 | J82: 0 | K82: 0 | L82: 0
B83: calças | C83: clara | D83: 1 | E83: 0 | F83: 0 | G83: 0 | H83: 0 | I83: 0 | J83: 0 | K83: 0 | L83: 0
B84: t-shirt | C84: escura | D84: 0 | E84: 0 | F84: 0 | G84: 0 | H84: 0 | I84: 0 | J84: 0 | K84: 0 | L84: 1
B85: calças | C85: clara | D85: 1 | E85: 0 | F85: 0 | G85: 0 | H85: 0 | I85: 0 | J85: 0 | K85: 0 | L85: 0
B86: camisola | C86: escura | D86: 0 | E86: 0 | F86: 0 | G86: 0 | H86: 0 | I86: 1 | J86: 0 | K86: 0 | L86: 0
B87: calças | C87: clara | D87: 1 | E87: 0 | F87: 0 | G87: 0 | H87: 0 | I87: 0 | J87: 0 | K87: 0 | L87: 0
B88: calças | C88: clara | D88: 1 | E88: 0 | F88: 0 | G88: 0 | H88: 0 | I88: 0 | J88: 0 | K88: 0 | L88: 0
B89: calças | C89: clara | D89: 1 | E89: 0 | F89: 0 | G89: 0 | H89: 0 | I89: 0 | J89: 0 | K89: 0 | L89: 0
B90: calças | C90: escura | D90: 0 | E90: 0 | F90: 1 | G90: 0 | H90: 0 | I90: 0 | J90: 0 | K90: 0 | L90: 0
B91: calças | C91: clara | D91: 1 | E91: 0 | F91: 0 | G91: 0 | H91: 0 | I91: 0 | J91: 0 | K91: 0 | L91: 0
B92: calças | C92: escura | D92: 0 | E92: 0 | F92: 1 | G92: 0 | H92: 0 | I92: 0 | J92: 0 | K92: 0 | L92: 0
B93: t-shirt | C93: clara | D93: 0 | E93: 0 | F93: 0 | G93: 0 | H93: 0 | I93: 0 | J93: 1 | K93: 0 | L93: 0
B94: calças | C94: clara | D94: 1 | E94: 0 | F94: 0 | G94: 0 | H94: 0 | I94: 0 | J94: 0 | K94: 0 | L94: 0
B95: t-shirt | C95: escura | D95: 0 | E95: 0 | F95: 0 | G95: 0 | H95: 0 | I95: 0 | J95: 0 | K95: 0 | L95: 1
B96: camisola | C96: clara | D96: 0 | E96: 0 | F96: 0 | G96: 1 | H96: 0 | I96: 0 | J96: 0 | K96: 0 | L96: 0
B97: calças | C97: clara | D97: 1 | E97: 0 | F97: 0 | G97: 0 | H97: 0 | I97: 0 | J97: 0 | K97: 0 | L97: 0
B98: camisola | C98: viva | D98: 0 | E98: 0 | F98: 0 | G98: 0 | H98: 1 | I98: 0 | J98: 0 | K98: 0 | L98: 0
B99: calças | C99: clara | D99: 1 | E99: 0 | F99: 0 | G99: 0 | H99: 0 | I99: 0 | J99: 0 | K99: 0 | L99: 0
B100: calças | C100: clara | D100: 1 | E100: 0 | F100: 0 | G100: 0 | H100: 0 | I100: 0 | J100: 0 | K100: 0 | L100: 0
B101: t-shirt | C101: clara | D101: 0 | E101: 0 | F101: 0 | G101: 0 | H101: 0 | I101: 0 | J101: 1 | K101: 0 | L101: 0
B102: calças | C102: clara | D102: 1 | E102: 0 | F102: 0 | G102: 0 | H102: 0 | I102: 0 | J102: 0 | K102: 0 | L102: 0
B103: calças | C103: escura | D103: 0 | E103: 0 | F103: 1 | G103: 0 | H103: 0 | I103: 0 | J103: 0 | K103: 0 | L103: 0
B104: calças | C104: clara | D104: 1 | E104: 0 | F104: 0 | G104: 0 | H104: 0 | I104: 0 | J104: 0 | K104: 0 | L104: 0
B105: camisola | C105: viva | D105: 0 | E105: 0 | F105: 0 | G105: 0 | H105: 1 | I105: 0 | J105: 0 | K105: 0 | L105: 0
B106: calças | C106: clara | D106: 1 | E106: 0 | F106: 0 | G106: 0 | H106: 0 | I106: 0 | J106: 0 | K106: 0 | L106: 0
B107: calças | C107: clara | D107: 1 | E107: 0 | F107: 0 | G107: 0 | H107: 0 | I107: 0 | J107: 0 | K107: 0 | L107: 0
B108: calças | C108: clara | D108: 1 | E108: 0 | F108: 0 | G108: 0 | H108: 0 | I108: 0 | J108: 0 | K108: 0 | L108: 0
B109: calças | C109: clara | D109: 1 | E109: 0 | F109: 0 | G109: 0 | H109: 0 | I109: 0 | J109: 0 | K109: 0 | L109: 0
B110: camisola | C110: clara | D110: 0 | E110: 0 | F110: 0 | G110: 1 | H110: 0 | I110: 0 | J110: 0 | K110: 0 | L110: 0
B111: calças | C111: escura | D111: 0 | E111: 0 | F111: 1 | G111: 0 | H111: 0 | I111: 0 | J111: 0 | K111: 0 | L111: 0
B112: camisola | C112: escura | D112: 0 | E112: 0 | F112: 0 | G112: 0 | H112: 0 | I112: 1 | J112: 0 | K112: 0 | L112: 0
B113: calças | C113: clara | D113: 1 | E113: 0 | F113: 0 | G113: 0 | H113: 0 | I113: 0 | J113: 0 | K113: 0 | L113: 0
B114: calças | C114: escura | D114: 0 | E114: 0 | F114: 1 | G114: 0 | H114: 0 | I114: 0 | J114: 0 | K114: 0 | L114: 0
B115: t-shirt | C115: escura | D115: 0 | E115: 0 | F115: 0 | G115: 0 | H115: 0 | I115: 0 | J115: 0 | K115: 0 | L115: 1
B116: calças | C116: clara | D116: 1 | E116: 0 | F116: 0 | G116: 0 | H116: 0 | I116: 0 | J116: 0 | K116: 0 | L116: 0
B117: t-shirt | C117: clara | D117: 0 | E117: 0 | F117: 0 | G117: 0 | H117: 0 | I117: 0 | J117: 1 | K117: 0 | L117: 0
B118: calças | C118: clara | D118: 1 | E118: 0 | F118: 0 | G118: 0 | H118: 0 | I118: 0 | J118: 0 | K118: 0 | L118: 0
B119: calças | C119: clara | D119: 1 | E119: 0 | F119: 0 | G119: 0 | H119: 0 | I119: 0 | J119: 0 | K119: 0 | L119: 0
B120: camisola | C120: viva | D120: 0 | E120: 0 | F120: 0 | G120: 0 | H120: 1 | I120: 0 | J120: 0 | K120: 0 | L120: 0
B121: calças | C121: clara | D121: 1 | E121: 0 | F121: 0 | G121: 0 | H121: 0 | I121: 0 | J121: 0 | K121: 0 | L121: 0
B122: t-shirt | C122: escura | D122: 0 | E122: 0 | F122: 0 | G122: 0 | H122: 0 | I122: 0 | J122: 0 | K122: 0 | L122: 1
B123: camisola | C123: viva | D123: 0 | E123: 0 | F123: 0 | G123: 0 | H123: 1 | I123: 0 | J123: 0 | K123: 0 | L123: 0
B124: calças | C124: clara | D124: 1 | E124: 0 | F124: 0 | G124: 0 | H124: 0 | I124: 0 | J124: 0 | K124: 0 | L124: 0
B125: calças | C125: escura | D125: 0 | E125: 0 | F125: 1 | G125: 0 | H125: 0 | I125: 0 | J125: 0 | K125: 0 | L125: 0
B126: calças | C126: clara | D126: 1 | E126: 0 | F126: 0 | G126: 0 | H126: 0 | I126: 0 | J126: 0 | K126: 0 | L126: 0
B127: t-shirt | C127: clara | D127: 0 | E127: 0 | F127: 0 | G127: 0 | H127: 0 | I127: 0 | J127: 1 | K127: 0 | L127: 0
B128: t-shirt | C128: escura | D128: 0 | E128: 0 | F128: 0 | G128: 0 | H128: 0 | I128: 0 | J128: 0 | K128: 0 | L128: 1
B129: camisola | C129: viva | D129: 0 | E129: 0 | F129: 0 | G129: 0 | H129: 1 | I129: 0 | J129: 0 | K129: 0 | L129: 0
B130: calças | C130: clara | D130: 1 | E130: 0 | F130: 0 | G130: 0 | H130: 0 | I130: 0 | J130: 0 | K130: 0 | L130: 0
B131: calças | C131: clara | D131: 1 | E131: 0 | F131: 0 | G131: 0 | H131: 0 | I131: 0 | J131: 0 | K131: 0 | L131: 0
B132: t-shirt | C132: escura | D132: 0 | E132: 0 | F132: 0 | G132: 0 | H132: 0 | I132: 0 | J132: 0 | K132: 0 | L132: 1
B133: calças | C133: clara | D133: =IF(AND(B133="calças", C133="clara"), 1, 0) -> 1 | E133: =IF(AND(B133="calças", C133="viva"), 1, 0) -> 0 | F133: =IF(AND(B133="calças", C133="escura"), 1, 0) -> 0 | G133: =IF(AND(B133="camisola", C133="clara"), 1, 0) -> 0 | H133: =IF(AND(B133="camisola", C133="viva"), 1, 0) -> 0 | I133: =IF(AND(B133="camisola", C133="escura"), 1, 0) -> 0 | J133: =IF(AND(B133="t-shirt", C133="clara"), 1, 0) -> 0 | K133: =IF(AND(B133="t-shirt", C133="viva"), 1, 0) -> 0 | L133: =IF(AND(B133="t-shirt", C133="escura"), 1, 0) -> 0
B134: t-shirt | C134: escura | D134: 0 | E134: 0 | F134: 0 | G134: 0 | H134: 0 | I134: 0 | J134: 0 | K134: 0 | L134: 1
B135: t-shirt | C135: escura | D135: 0 | E135: 0 | F135: 0 | G135: 0 | H135: 0 | I135: 0 | J135: 0 | K135: 0 | L135: 1
B136: calças | C136: clara | D136: 1 | E136: 0 | F136: 0 | G136: 0 | H136: 0 | I136: 0 | J136: 0 | K136: 0 | L136: 0
B137: calças | C137: clara | D137: 1 | E137: 0 | F137: 0 | G137: 0 | H137: 0 | I137: 0 | J137: 0 | K137: 0 | L137: 0
B138: camisola | C138: viva | D138: 0 | E138: 0 | F138: 0 | G138: 0 | H138: 1 | I138: 0 | J138: 0 | K138: 0 | L138: 0
B139: calças | C139: clara | D139: 1 | E139: 0 | F139: 0 | G139: 0 | H139: 0 | I139: 0 | J139: 0 | K139: 0 | L139: 0
B140: calças | C140: clara | D140: 1 | E140: 0 | F140: 0 | G140: 0 | H140: 0 | I140: 0 | J140: 0 | K140: 0 | L140: 0
B141: calças | C141: clara | D141: 1 | E141: 0 | F141: 0 | G141: 0 | H141: 0 | I141: 0 | J141: 0 | K141: 0 | L141: 0
B142: calças | C142: escura | D142: 0 | E142: 0 | F142: 1 | G142: 0 | H142: 0 | I142: 0 | J142: 0 | K142: 0 | L142: 0
B143: calças | C143: escura | D143: 0 | E143: 0 | F143: 1 | G143: 0 | H143: 0 | I143: 0 | J143: 0 | K143: 0 | L143: 0
B144: camisola | C144: viva | D144: 0 | E144: 0 | F144: 0 | G144: 0 | H144: 1 | I144: 0 | J144: 0 | K144: 0 | L144: 0
B145: t-shirt | C145: escura | D145: 0 | E145: 0 | F145: 0 | G145: 0 | H145: 0 | I145: 0 | J145: 0 | K145: 0 | L145: 1
B146: t-shirt | C146: escura | D146: 0 | E146: 0 | F146: 0 | G146: 0 | H146: 0 | I146: 0 | J146: 0 | K146: 0 | L146: 1
B147: calças | C147: clara | D147: 1 | E147: 0 | F147: 0 | G147: 0 | H147: 0 | I147: 0 | J147: 0 | K147: 0 | L147: 0
B148: calças | C148: clara | D148: 1 | E148: 0 | F148: 0 | G148: 0 | H148: 0 | I148: 0 | J148: 0 | K148: 0 | L148: 0
B149: calças | C149: clara | D149: 1 | E149: 0 | F149: 0 | G149: 0 | H149: 0 | I149: 0 | J149: 0 | K149: 0 | L149: 0
B150: t-shirt | C150: escura | D150: 0 | E150: 0 | F150: 0 | G150: 0 | H150: 0 | I150: 0 | J150: 0 | K150: 0 | L150: 1
B151: calças | C151: clara | D151: 1 | E151: 0 | F151: 0 | G151: 0 | H151: 0 | I151: 0 | J151: 0 | K151: 0 | L151: 0
B152: camisola | C152: clara | D152: 0 | E152: 0 | F152: 0 | G152: 1 | H152: 0 | I152: 0 | J152: 0 | K152: 0 | L152: 0
B153: camisola | C153: clara | D153: 0 | E153: 0 | F153: 0 | G153: 1 | H153: 0 | I153: 0 | J153: 0 | K153: 0 | L153: 0
B154: camisola | C154: clara | D154: 0 | E154: 0 | F154: 0 | G154: 1 | H154: 0 | I154: 0 | J154: 0 | K154: 0 | L154: 0
B155: calças | C155: clara | D155: 1 | E155: 0 | F155: 0 | G155: 0 | H155: 0 | I155: 0 | J155: 0 | K155: 0 | L155: 0
B156: calças | C156: clara | D156: 1 | E156: 0 | F156: 0 | G156: 0 | H156: 0 | I156: 0 | J156: 0 | K156: 0 | L156: 0
B157: t-shirt | C157: clara | D157: 0 | E157: 0 | F157: 0 | G157: 0 | H157: 0 | I157: 0 | J157: 1 | K157: 0 | L157: 0
B158: calças | C158: clara | D158: 1 | E158: 0 | F158: 0 | G158: 0 | H158: 0 | I158: 0 | J158: 0 | K158: 0 | L158: 0
B159: t-shirt | C159: clara | D159: 0 | E159: 0 | F159: 0 | G159: 0 | H159: 0 | I159: 0 | J159: 1 | K159: 0 | L159: 0
B160: calças | C160: escura | D160: 0 | E160: 0 | F160: 1 | G160: 0 | H160: 0 | I160: 0 | J160: 0 | K160: 0 | L160: 0
B161: camisola | C161: clara | D161: 0 | E161: 0 | F161: 0 | G161: 1 | H161: 0 | I161: 0 | J161: 0 | K161: 0 | L161: 0
B162: calças | C162: clara | D162: 1 | E162: 0 | F162: 0 | G162: 0 | H162: 0 | I162: 0 | J162: 0 | K162: 0 | L162: 0
B163: calças | C163: clara | D163: 1 | E163: 0 | F163: 0 | G163: 0 | H163: 0 | I163: 0 | J163: 0 | K163: 0 | L163: 0
B164: t-shirt | C164: escura | D164: 0 | E164: 0 | F164: 0 | G164: 0 | H164: 0 | I164: 0 | J164: 0 | K164: 0 | L164: 1
B165: t-shirt | C165: escura | D165: 0 | E165: 0 | F165: 0 | G165: 0 | H165: 0 | I165: 0 | J165: 0 | K165: 0 | L165: 1
B166: camisola | C166: escura | D166: 0 | E166: 0 | F166: 0 | G166: 0 | H166: 0 | I166: 1 | J166: 0 | K166: 0 | L166: 0
B167: calças | C167: escura | D167: 0 | E167: 0 | F167: 1 | G167: 0 | H167: 0 | I167: 0 | J167: 0 | K167: 0 | L167: 0
B168: calças | C168: escura | D168: 0 | E168: 0 | F168: 1 | G168: 0 | H168: 0 | I168: 0 | J168: 0 | K168: 0 | L168: 0
B169: camisola | C169: clara | D169: 0 | E169: 0 | F169: 0 | G169: 1 | H169: 0 | I169: 0 | J169: 0 | K169: 0 | L169: 0
B170: camisola | C170: clara | D170: 0 | E170: 0 | F170: 0 | G170: 1 | H170: 0 | I170: 0 | J170: 0 | K170: 0 | L170: 0
B171: camisola | C171: clara | D171: 0 | E171: 0 | F171: 0 | G171: 1 | H171: 0 | I171: 0 | J171: 0 | K171: 0 | L171: 0
B172: t-shirt | C172: escura | D172: 0 | E172: 0 | F172: 0 | G172: 0 | H172: 0 | I172: 0 | J172: 0 | K172: 0 | L172: 1
B173: camisola | C173: clara | D173: 0 | E173: 0 | F173: 0 | G173: 1 | H173: 0 | I173: 0 | J173: 0 | K173: 0 | L173: 0
B174: t-shirt | C174: escura | D174: 0 | E174: 0 | F174: 0 | G174: 0 | H174: 0 | I174: 0 | J174: 0 | K174: 0 | L174: 1
B175: calças | C175: clara | D175: 1 | E175: 0 | F175: 0 | G175: 0 | H175: 0 | I175: 0 | J175: 0 | K175: 0 | L175: 0
B176: camisola | C176: escura | D176: 0 | E176: 0 | F176: 0 | G176: 0 | H176: 0 | I176: 1 | J176: 0 | K176: 0 | L176: 0
B177: t-shirt | C177: escura | D177: 0 | E177: 0 | F177: 0 | G177: 0 | H177: 0 | I177: 0 | J177: 0 | K177: 0 | L177: 1
B178: calças | C178: clara | D178: 1 | E178: 0 | F178: 0 | G178: 0 | H178: 0 | I178: 0 | J178: 0 | K178: 0 | L178: 0
B179: camisola | C179: viva | D179: 0 | E179: 0 | F179: 0 | G179: 0 | H179: 1 | I179: 0 | J179: 0 | K179: 0 | L179: 0
B180: camisola | C180: clara | D180: 0 | E180: 0 | F180: 0 | G180: 1 | H180: 0 | I180: 0 | J180: 0 | K180: 0 | L180: 0
B181: calças | C181: clara | D181: 1 | E181: 0 | F181: 0 | G181: 0 | H181: 0 | I181: 0 | J181: 0 | K181: 0 | L181: 0
B182: calças | C182: clara | D182: 1 | E182: 0 | F182: 0 | G182: 0 | H182: 0 | I182: 0 | J182: 0 | K182: 0 | L182: 0
B183: camisola | C183: viva | D183: 0 | E183: 0 | F183: 0 | G183: 0 | H183: 1 | I183: 0 | J183: 0 | K183: 0 | L183: 0
B184: t-shirt | C184: escura | D184: 0 | E184: 0 | F184: 0 | G184: 0 | H184: 0 | I184: 0 | J184: 0 | K184: 0 | L184: 1
B185: calças | C185: clara | D185: 1 | E185: 0 | F185: 0 | G185: 0 | H185: 0 | I185: 0 | J185: 0 | K185: 0 | L185: 0
B186: calças | C186: clara | D186: 1 | E186: 0 | F186: 0 | G186: 0 | H186: 0 | I186: 0 | J186: 0 | K186: 0 | L186: 0
B187: calças | C187: escura | D187: 0 | E187: 0 | F187: 1 | G187: 0 | H187: 0 | I187: 0 | J187: 0 | K187: 0 | L187: 0
B188: t-shirt | C188: escura | D188: 0 | E188: 0 | F188: 0 | G188: 0 | H188: 0 | I188: 0 | J188: 0 | K188: 0 | L188: 1
B189: t-shirt | C189: clara | D189: 0 | E189: 0 | F189: 0 | G189: 0 | H189: 0 | I189: 0 | J189: 1 | K189: 0 | L189: 0
B190: calças | C190: clara | D190: 1 | E190: 0 | F190: 0 | G190: 0 | H190: 0 | I190: 0 | J190: 0 | K190: 0 | L190: 0
B191: t-shirt | C191: escura | D191: 0 | E191: 0 | F191: 0 | G191: 0 | H191: 0 | I191: 0 | J191: 0 | K191: 0 | L191: 1
B192: calças | C192: clara | D192: 1 | E192: 0 | F192: 0 | G192: 0 | H192: 0 | I192: 0 | J192: 0 | K192: 0 | L192: 0
B193: calças | C193: clara | D193: 1 | E193: 0 | F193: 0 | G193: 0 | H193: 0 | I193: 0 | J193: 0 | K193: 0 | L193: 0
B194: calças | C194: clara | D194: 1 | E194: 0 | F194: 0 | G194: 0 | H194: 0 | I194: 0 | J194: 0 | K194: 0 | L194: 0
B195: calças | C195: clara | D195: 1 | E195: 0 | F195: 0 | G195: 0 | H195: 0 | I195: 0 | J195: 0 | K195: 0 | L195: 0
B196: calças | C196: clara | D196: 1 | E196: 0 | F196: 0 | G196: 0 | H196: 0 | I196: 0 | J196: 0 | K196: 0 | L196: 0
B197: camisola | C197: escura | D197: =IF(AND(B197="calças", C197="clara"), 1, 0) -> 0 | E197: =IF(AND(B197="calças", C197="viva"), 1, 0) -> 0 | F197: =IF(AND(B197="calças", C197="escura"), 1, 0) -> 0 | G197: =IF(AND(B197="camisola", C197="clara"), 1, 0) -> 0 | H197: =IF(AND(B197="camisola", C197="viva"), 1, 0) -> 0 | I197: =IF(AND(B197="camisola", C197="escura"), 1, 0) -> 1 | J197: =IF(AND(B197="t-shirt", C197="clara"), 1, 0) -> 0 | K197: =IF(AND(B197="t-shirt", C197="viva"), 1, 0) -> 0 | L197: =IF(AND(B197="t-shirt", C197="escura"), 1, 0) -> 0
B198: calças | C198: escura | D198: 0 | E198: 0 | F198: 1 | G198: 0 | H198: 0 | I198: 0 | J198: 0 | K198: 0 | L198: 0
B199: camisola | C199: viva | D199: 0 | E199: 0 | F199: 0 | G199: 0 | H199: 1 | I199: 0 | J199: 0 | K199: 0 | L199: 0
B200: calças | C200: clara | D200: 1 | E200: 0 | F200: 0 | G200: 0 | H200: 0 | I200: 0 | J200: 0 | K200: 0 | L200: 0
... 351 more rows
